bitfinex-derivatives/quotes_BNBF0:USTF0_20250511
["timestamp","ask_amount","ask_price","bid_price","bid_amount"]
[1746977070448,0.30553009,654.6,653.27,0.25780875]
[1746977070942,0.28089097,654.59,651.84,0.96619065]
[1746977071146,0.30553009,654.6,651.97,0.30676258]
[1746977071551,0.28093985,654.59,651.98,1.46319699]
[1746977071744,0.28093985,654.59,651.99,0.25799319]
[1746977071948,0.28093985,654.59,652.12,0.30669201]
[1746977072148,0.30554409,654.57,652.12,0.30669201]
[1746977072347,0.30554409,654.57,652.13,1.2052038]
[1746977072550,0.30554409,654.57,652.25,0.30663089]
[1746977072746,0.28093985,654.56,652.25,0.30663089]
[1746977073045,0.3055581,654.54,652.26,1.46319699]
[1746977073249,0.3055581,654.54,652.27,0.25799319]
[1746977073445,0.3055581,654.54,652.28,1.2052038]
[1746977073644,0.3055581,654.54,652.29,0.25799319]
[1746977073849,0.26611608,654.53,652.29,0.25799319]
[1746977074050,0.26611608,654.53,652.3,0.25799319]
[1746977074250,0.26611608,654.53,652.31,1.2052038]
[1746977074547,0.26611608,654.53,652.31,1.46319699]
[1746977074751,0.26611608,654.53,652.32,0.25799319]
[1746977074953,0.26611608,654.53,652.42,0.30655099]
[1746977075246,0.26611608,654.53,652.43,1.46319699]
[1746977075547,0.26611608,654.53,652.44,0.25799319]
[1746977075853,0.26611608,654.53,652.45,1.2052038]
[1746977076154,0.26611608,654.53,652.46,0.25799319]
[1746977076449,0.26611608,654.53,652.48,0.3065228]
[1746977076648,0.3055721,654.51,652.48,0.3065228]
[1746977076853,0.3055721,654.51,652.49,0.25799319]
[1746977077154,0.3055721,654.51,652.51,0.30650871]
[1746977077851,0.3055721,654.51,652.52,0.25799319]
[1746977078054,0.3055721,654.51,652.54,0.30649462]
[1746977078255,0.3055721,654.51,652.55,0.25799319]
[1746977078452,0.3055721,654.51,652.57,0.30648053]
[1746977078657,0.28094349,654.5,652.57,0.30648053]
[1746977078860,0.30558611,654.48,652.58,1.2052038]
[1746977079156,0.30558611,654.48,652.6,0.30646644]
[1746977079359,0.28094349,654.47,652.6,0.30646644]
[1746977079658,0.30560012,654.45,652.61,0.25799319]
[1746977079857,0.30560012,654.45,652.63,0.30645235]
[1746977080053,0.30560012,654.45,652.64,1.2052038]
[1746977080258,0.30560012,654.45,652.66,0.30643826]
[1746977080655,0.30560012,654.45,652.67,1.2052038]
[1746977080855,0.30560012,654.45,652.68,0.30642887]
[1746977081155,0.28094334,654.44,652.69,1.46319699]
[1746977081354,0.28094334,654.44,652.7,0.30641948]
[1746977081555,0.30560946,654.43,652.7,0.56441267]
[1746977081858,0.28094334,654.42,652.71,0.25799319]
[1746977082057,0.28094334,654.42,652.72,1.2052038]
[1746977082260,0.28094334,654.42,652.72,1.46319699]
[1746977082461,0.28094334,654.42,652.73,0.25799319]
[1746977082761,0.2660937,654.41,652.73,0.25799319]
[1746977083160,0.2660937,654.41,652.74,1.2052038]
[1746977083356,0.28094334,654.4,652.74,1.2052038]
[1746977083561,0.28094334,654.4,652.75,0.25799319]
[1746977083755,0.28094334,654.4,652.76,1.2052038]
[1746977084062,0.28094334,654.4,652.77,0.25799319]
[1746977084360,0.28094334,654.4,652.78,1.2052038]
[1746977084860,0.28094334,654.4,652.79,0.25799319]
[1746977085057,0.28094334,654.4,652.8,1.2052038]
[1746977085561,0.28094334,654.4,652.81,0.25799319]
[1746977085960,0.28094334,654.4,652.82,1.2052038]
[1746977086262,0.28094334,654.4,652.83,0.25799319]
[1746977086761,0.28094334,654.4,652.84,1.2052038]
[1746977086962,0.28094334,654.4,652.85,0.25799319]
[1746977087361,0.28094334,654.4,652.86,1.2052038]
[1746977087858,0.28094334,654.4,652.87,0.25799319]
[1746977088262,0.28094334,654.4,652.88,1.2052038]
[1746977088457,0.28094334,654.4,652.89,0.25799319]
[1746977088765,0.26611812,654.39,652.89,0.25799319]
[1746977088962,0.30563281,654.38,652.89,0.25799319]
[1746977089161,0.58657615,654.38,652.71,0.25799319]
[1746977089364,0.28094334,654.37,652.71,0.25799319]
[1746977089863,0.28094334,654.37,652.72,1.20715829]
[1746977090158,0.30564682,654.35,652.73,1.20715829]
[1746977090459,0.30564682,654.35,652.73,1.46515148]
[1746977090662,0.30564682,654.35,652.74,0.25799319]
[1746977090862,0.30564682,654.35,652.75,1.20715829]
[1746977091363,0.30564682,654.35,652.76,0.25799319]
[1746977091566,0.30564682,654.35,652.77,1.20715829]
[1746977091863,0.26613338,654.34,652.77,1.20715829]
[1746977092063,0.28102977,654.33,652.78,1.46515148]
[1746977092365,0.30566551,654.31,652.79,0.25799319]
[1746977092564,0.30566551,654.31,652.8,1.20715829]
[1746977092762,0.28102977,654.3,652.8,1.20715829]
[1746977093065,0.30567952,654.28,652.81,0.25799319]
[1746977093559,0.30567952,654.28,652.82,1.20715829]
[1746977093865,0.30567952,654.28,652.83,0.25799319]
[1746977094367,0.30567952,654.28,652.84,1.20715829]
[1746977094666,0.30567952,654.28,652.85,0.25799319]
[1746977094961,0.30567952,654.28,652.86,1.20715829]
[1746977095267,0.30567952,654.28,652.87,0.25799319]
[1746977095767,0.30567952,654.28,652.88,1.20715829]
[1746977095965,0.30567952,654.28,652.89,0.25799319]
[1746977096965,0.30567952,654.28,652.71,0.25799319]
[1746977097262,0.28103304,654.27,652.72,1.20683787]
[1746977097663,0.30569354,654.25,652.73,1.20683787]
[1746977098064,0.28103304,654.24,652.74,0.25799319]
[1746977098360,0.30570288,654.23,652.74,0.25799319]
[1746977098565,0.30570288,654.23,652.73,0.25799319]
[1746977098864,0.30570288,654.23,652.74,1.20683787]
[1746977099166,0.30570288,654.23,652.75,0.25799319]
[1746977099666,0.30570288,654.23,652.76,1.20683787]
[1746977099866,0.30570288,654.23,652.77,0.25799319]
[1746977100062,0.30570288,654.23,652.78,1.20683787]
[1746977100365,0.30570288,654.23,652.79,1.20683787]
[1746977100567,0.30570288,654.23,652.79,1.46483106]
[1746977100767,0.26614356,654.22,652.79,1.46483106]
[1746977100963,0.30571223,654.21,652.8,0.25799319]
[1746977101367,0.30571223,654.21,652.81,1.20683787]
[1746977101668,0.30571223,654.21,652.82,0.25799319]
[1746977101968,0.30571223,654.21,652.83,1.20683787]
[1746977102369,0.30571223,654.21,652.84,0.25799319]
[1746977103371,0.30571223,654.21,652.71,0.25799319]
[1746977103670,0.30571223,654.21,652.7,0.30641948]
[1746977103871,0.30571223,654.21,652.71,1.20489906]
[1746977104073,0.30571223,654.21,652.71,1.46310956]
[1746977104373,0.30571223,654.21,652.72,0.2582105]
[1746977104571,0.30571223,654.21,652.73,1.20489906]
[1746977105073,0.30571223,654.21,652.74,0.25821217]
[1746977105368,0.30571223,654.21,652.75,1.20489906]
[1746977105872,0.30571223,654.21,652.76,1.46311123]
[1746977106273,0.30571223,654.21,652.77,0.25821217]
[1746977106468,0.30571223,654.21,652.78,1.20455994]
[1746977106772,0.26617816,654.2,652.78,1.20455994]
[1746977106972,0.26617816,654.2,652.79,1.20455994]
[1746977107172,0.28106783,654.19,652.79,1.46277211]
[1746977107471,0.28106783,654.19,652.8,0.25821217]
[1746977108266,0.28106783,654.19,652.71,0.25821217]
[1746977108572,0.28106783,654.19,652.72,1.20463067]
[1746977108973,0.28106783,654.19,652.73,0.25821217]
[1746977109272,0.30573092,654.17,652.74,1.20463067]
[1746977109866,0.54725108,654.16,652.75,1.46284284]
[1746977110070,0.30574494,654.14,652.75,1.46284284]
[1746977110372,0.30574494,654.14,652.76,0.25821217]
[1746977110567,0.28106783,654.13,652.76,0.25821217]
[1746977110772,0.30575897,654.11,652.77,1.20463067]
[1746977111269,0.28106783,654.1,652.78,0.25821217]
[1746977111573,0.30576831,654.09,652.78,0.25821217]
[1746977111873,0.28106783,654.08,652.78,0.25821217]
[1746977112072,0.30577766,654.07,652.78,0.25821217]
[1746977112273,0.30577766,654.07,652.71,0.25821217]
[1746977112972,0.26619852,654.06,652.72,1.20520994]
[1746977113176,0.26619852,654.06,652.73,0.25821217]
[1746977113373,0.26619852,654.06,652.74,1.20520994]
[1746977113674,0.30578701,654.05,652.74,1.20520994]
[1746977113871,0.30578701,654.05,652.75,0.25821217]
[1746977114174,0.30578701,654.05,652.76,1.20520994]
[1746977114371,0.30578701,654.05,652.77,0.25821217]
[1746977114674,0.30578701,654.05,652.78,1.20520994]
[1746977115074,0.30578701,654.05,652.79,0.25821217]
[1746977115875,0.26617409,654.04,652.79,0.25821217]
[1746977116173,0.30579637,654.03,652.71,0.25821217]
[1746977116577,0.30579637,654.03,652.72,1.20493884]
[1746977116971,0.30579637,654.03,652.73,0.25821217]
[1746977117276,0.30579637,654.03,652.74,1.20493884]
[1746977117576,0.30579637,654.03,652.75,0.25821217]
[1746977117877,0.30579637,654.03,652.76,1.20493884]
[1746977118278,0.30579637,654.03,652.77,0.25821217]
[1746977118477,0.30579637,654.03,652.78,1.20493884]
[1746977118780,0.26615984,654.02,652.78,1.20493884]
[1746977118978,0.26615984,654.02,652.79,0.25821217]
[1746977119177,0.26615984,654.02,652.8,1.20493884]
[1746977119374,0.26615984,654.02,652.81,0.25821217]
[1746977119879,0.26615984,654.02,652.82,1.20493884]
[1746977120077,0.26615984,654.02,652.83,0.25821217]
[1746977120273,0.26615984,654.02,652.84,1.20493884]
[1746977120779,0.26615984,654.02,652.85,0.25821217]
[1746977121177,0.26615984,654.02,652.86,1.20493884]
[1746977121478,0.26615984,654.02,652.87,0.25821217]
[1746977121679,0.30579637,654.03,652.87,0.25821217]
[1746977121880,0.26614865,654.01,652.87,0.25821217]
[1746977122174,0.26614865,654.01,652.71,0.25821217]
[1746977122379,0.26614865,654.01,652.71,0.56462696]
[1746977122879,0.26614865,654.01,652.72,0.25821217]
[1746977123078,0.26614865,654.01,652.73,1.20630757]
[1746977123680,0.26614865,654.01,652.74,0.25821217]
[1746977123877,0.26614865,654.01,652.75,1.20630757]
[1746977124378,0.26614865,654.01,652.76,0.25821217]
[1746977124679,0.30579637,654.03,652.77,1.20630757]
[1746977124881,0.26615984,654.0,652.77,1.20630757]
[1746977125073,0.26615984,654.0,652.78,0.25821217]
[1746977125277,0.26615984,654.0,652.79,1.20630757]
[1746977125775,0.26615984,654.0,652.8,0.25821217]
[1746977125981,0.26615984,654.0,652.81,1.20630757]
[1746977126981,0.26615984,654.0,652.82,0.25821217]
[1746977127281,0.26615984,654.0,652.83,1.20630757]
[1746977127580,0.30579637,654.03,652.84,0.25821217]
[1746977127781,0.2661517,653.99,652.84,0.25821217]
[1746977127980,0.2661517,653.99,652.85,1.20630757]
[1746977128185,0.2661517,653.99,652.86,0.25821217]
[1746977128486,0.2661517,653.99,652.87,1.20630757]
[1746977128887,0.2661517,653.99,652.88,0.25821217]
[1746977129383,0.2661517,653.99,652.89,1.20630757]
[1746977129983,0.2661517,653.99,652.9,0.25821217]
[1746977130386,0.2661517,653.99,652.91,1.20630757]
[1746977130687,0.2661517,653.99,652.92,0.25821217]
[1746977131388,0.2661517,653.99,652.93,1.20630757]
[1746977131690,0.2661517,653.99,652.94,0.25821217]
[1746977132091,0.2661517,653.99,652.95,1.20630757]
[1746977132890,0.2661517,653.99,652.96,0.25821217]
[1746977134194,0.2661517,653.99,652.97,1.20630757]
[1746977134489,0.2661517,653.99,652.98,0.25821217]
[1746977135087,0.2661517,653.99,652.99,1.20630757]
[1746977135591,0.2661517,653.99,653.0,0.25821217]
[1746977135991,0.2661517,653.99,653.01,1.20630757]
[1746977136288,0.2661517,653.99,653.02,0.25821217]
[1746977136491,0.30579637,654.03,653.02,0.25821217]
[1746977136686,0.30579637,654.03,653.03,1.20630757]
[1746977136884,0.26610082,653.98,653.03,1.20630757]
[1746977137089,0.26610082,653.98,653.04,0.25821217]
[1746977137792,0.26610082,653.98,653.05,1.20630757]
[1746977138192,0.26610082,653.98,653.06,0.25821217]
[1746977138494,0.26610082,653.98,653.07,1.20630757]
[1746977138895,0.26610082,653.98,653.08,0.25821217]
[1746977139193,0.26610082,653.98,653.09,1.20630757]
[1746977139495,0.30579637,654.03,653.09,1.20630757]
[1746977139693,0.26609268,653.97,653.1,0.25821217]
[1746977140689,0.26609268,653.97,652.72,0.25821217]
[1746977140894,0.26609268,653.97,652.73,1.20854698]
[1746977141097,0.26609268,653.97,652.74,0.30640071]
[1746977141394,0.26609268,653.97,652.75,0.25821217]
[1746977141595,0.26609268,653.97,652.76,0.30639132]
[1746977141895,0.26609268,653.97,652.77,1.20854698]
[1746977142089,0.26609268,653.97,652.78,0.30638193]
[1746977142294,0.26609268,653.97,652.79,1.20854698]
[1746977142593,0.26609268,653.97,652.79,1.46675915]
[1746977142896,0.26609268,653.97,652.8,1.20854698]
[1746977143098,0.26609268,653.97,652.8,1.46675915]
[1746977143293,0.26609268,653.97,652.81,1.20854698]
[1746977143595,0.26609268,653.97,652.81,1.46675915]
[1746977143791,0.26609268,653.97,652.82,0.25821217]
[1746977144096,0.26609268,653.97,652.83,1.20854698]
[1746977144597,0.26609268,653.97,652.84,0.25821217]
[1746977144994,0.26609268,653.97,652.85,1.20854698]
[1746977145397,0.26609268,653.97,652.86,0.25821217]
[1746977145598,0.30579637,654.03,652.86,0.25821217]
[1746977145997,0.26605708,654.02,652.87,1.20854698]
[1746977146397,0.26605708,654.02,652.88,0.25821217]
[1746977146697,0.26605708,654.02,652.89,1.20854698]
[1746977146995,0.26605708,654.02,652.9,0.2580153]
[1746977147198,0.26605708,654.02,652.91,1.20854698]
[1746977147798,0.26605708,654.02,652.92,0.2580153]
[1746977148399,0.26605708,654.02,652.93,1.20854698]
[1746977148601,0.30579637,654.03,652.93,1.20854698]
[1746977148801,0.26612524,654.01,652.93,1.20854698]
[1746977149097,0.26612524,654.01,652.94,0.2580153]
[1746977149503,0.26612524,654.01,652.95,1.20854698]
[1746977149903,0.26612524,654.01,652.96,0.2580153]
[1746977150301,0.26612524,654.01,652.97,1.20854698]
[1746977150602,0.26612524,654.01,652.98,0.2580153]
[1746977151104,0.26612524,654.01,652.99,1.20854698]
[1746977151503,0.30579637,654.03,652.99,1.20854698]
[1746977151804,0.26611913,654.0,653.0,0.2580153]
[1746977152305,0.26611913,654.0,653.01,1.20854698]
[1746977152506,0.26611913,654.0,653.02,0.2580153]
[1746977153105,0.26611913,654.0,653.03,1.20854698]
[1746977153605,0.26611913,654.0,653.04,0.2580153]
[1746977154501,0.30579637,654.03,653.05,1.20854698]
[1746977154901,0.2660642,654.02,653.06,0.2580153]
[1746977155706,0.2660642,654.02,652.79,0.2580153]
[1746977156005,0.2660642,654.02,652.8,1.20925593]
[1746977156501,0.2660642,654.02,652.81,1.46727123]
[1746977157006,0.2660642,654.02,652.82,0.2580153]
[1746977157207,0.2660642,654.02,652.83,1.20925593]
[1746977157404,0.2660642,654.02,652.83,1.46727123]
[1746977157601,0.30579637,654.03,652.83,1.46727123]
[1746977157903,0.26613542,654.01,652.84,1.46727123]
[1746977158300,0.26613542,654.01,652.85,0.2580153]
[1746977158604,0.26613542,654.01,652.86,1.46727123]
[1746977158905,0.26613542,654.01,652.87,0.2580153]
[1746977159405,0.26613542,654.01,652.88,1.20925593]
[1746977159908,0.26613542,654.01,652.89,1.46727123]
[1746977160302,0.26613542,654.01,652.9,0.2580153]
[1746977160502,0.30579637,654.03,652.9,0.2580153]
[1746977160707,0.30579637,654.03,652.91,1.20925593]
[1746977160905,0.26612931,654.0,652.92,0.2580153]
[1746977161305,0.26612931,654.0,652.93,1.20925593]
[1746977161708,0.26612931,654.0,652.94,0.2580153]
[1746977162307,0.26612931,654.0,652.95,1.20925593]
[1746977162607,0.26612931,654.0,652.96,0.2580153]
[1746977163608,0.30579637,654.03,652.97,1.20925593]
[1746977163907,0.30579637,654.03,652.98,0.2580153]
[1746977164109,0.26610794,654.02,652.98,0.2580153]
[1746977164809,0.26610794,654.02,652.99,1.20925593]
[1746977165302,0.26610794,654.02,652.79,1.20925593]
[1746977165506,0.26610794,654.02,653.0,0.25812759]
[1746977165704,0.26610794,654.02,652.8,0.25812759]
[1746977166004,0.26610794,654.02,652.81,1.20925593]
[1746977166304,0.26610794,654.02,652.82,0.25812759]
[1746977166508,0.30579637,654.03,652.83,1.20925593]
[1746977166808,0.26613745,654.01,652.84,0.25812759]
[1746977167107,0.26613745,654.01,652.85,1.20925593]
[1746977167308,0.26613745,654.01,652.86,0.25812759]
[1746977167508,0.26613745,654.01,652.87,1.20925593]
[1746977168003,0.26613745,654.01,652.88,0.25812759]
[1746977168307,0.26613745,654.01,652.89,1.20925593]
[1746977168705,0.26613745,654.01,652.9,0.25812759]
[1746977169507,0.26613745,654.01,652.91,1.20925593]
[1746977169712,0.30579637,654.03,652.92,0.25812759]
[1746977169913,0.26612931,654.0,652.93,1.20925593]
[1746977170311,0.26612931,654.0,652.94,0.25812759]
[1746977170907,0.26612931,654.0,652.95,1.20925593]
[1746977171112,0.26612931,654.0,652.96,0.25812759]
[1746977171412,0.26612931,654.0,652.97,1.20925593]
[1746977171712,0.26612931,654.0,652.98,0.25812759]
[1746977171912,0.26612931,654.0,652.99,1.20925593]
[1746977172313,0.26612931,654.0,653.0,0.25812759]
[1746977172815,0.26612931,654.0,653.01,1.20925593]
[1746977173113,0.26612931,654.0,653.02,0.25812759]
[1746977173614,0.26612931,654.0,653.03,1.20925593]
[1746977174015,0.26612931,654.0,653.04,0.25812759]
[1746977174611,0.26612931,654.0,653.05,1.20925593]
[1746977175212,0.26612931,654.0,653.06,0.25812759]
[1746977175515,0.30579637,654.03,653.06,0.25812759]
[1746977175815,0.26612931,653.99,653.07,1.20925593]
[1746977176616,0.26612931,653.99,652.79,1.20925593]
[1746977176915,0.26612931,653.99,652.8,0.25813627]
[1746977177116,0.26612931,653.99,652.81,1.20925593]
[1746977177718,0.26612931,653.99,652.82,0.25813627]
[1746977178016,0.26612931,653.99,652.83,1.20925593]
[1746977178517,0.30579637,654.03,652.84,0.25813627]
[1746977178817,0.2661517,653.98,652.84,0.25813627]
[1746977179118,0.2661517,653.98,652.85,1.20925593]
[1746977179418,0.2661517,653.98,652.86,0.25813627]
[1746977179713,0.2661517,653.98,652.87,1.20925593]
[1746977180216,0.2661517,653.98,652.88,0.25813627]
[1746977180718,0.2661517,653.98,652.89,1.20925593]
[1746977181119,0.2661517,653.98,652.9,0.25813627]
[1746977181517,0.2661517,653.98,652.91,1.20925593]
[1746977181717,0.2661517,653.98,652.92,0.25813627]
[1746977182318,0.2661517,653.98,652.93,1.20925593]
[1746977182613,0.2661517,653.98,652.94,0.25813627]
[1746977183018,0.2661517,653.98,652.95,1.20925593]
[1746977183319,0.2661517,653.98,652.96,0.25813627]
[1746977183919,0.2661517,653.98,652.97,1.20925593]
[1746977184218,0.57197144,653.98,652.97,1.20925593]
[1746977184618,0.57197144,653.98,652.98,0.25820017]
[1746977184619,0.30581974,653.98,652.98,0.25820017]
[1746977184823,0.26617511,653.97,652.98,0.25820017]
[1746977185018,0.3058291,653.96,652.98,0.25820017]
[1746977185519,0.3058291,653.96,652.79,0.25820017]
[1746977185820,0.3058291,653.96,652.8,1.2137097]
[1746977186014,0.3058291,653.96,652.81,1.2137097]
[1746977186322,0.3058291,653.96,652.82,0.25820017]
[1746977186619,0.3058291,653.96,652.83,1.2137097]
[1746977187119,0.3058291,653.96,652.84,0.25820017]
[1746977187420,0.3058291,653.96,652.85,1.2137097]
[1746977187814,0.26620056,653.95,652.85,1.2137097]
[1746977188021,0.30583845,653.94,652.85,1.2137097]
[1746977188420,0.30583845,653.94,652.78,0.30638193]
[1746977188617,0.30583845,653.94,652.79,0.25823395]
[1746977189018,0.30583845,653.94,652.8,1.21297746]
[1746977189919,0.30583845,653.94,652.78,0.30638193]
[1746977189920,0.30583845,653.94,652.81,1.21297746]
[1746977190616,0.30583845,653.94,652.79,1.21297746]
[1746977190917,0.26620871,653.93,652.82,0.25823691]
[1746977191121,0.30584781,653.92,652.8,0.25823691]
[1746977191421,0.30584781,653.92,652.81,1.21297746]
[1746977192024,0.30584781,653.92,652.78,0.30638193]
[1746977192421,0.30584781,653.92,652.79,0.25824783]
[1746977193823,0.2662138,653.91,652.79,0.25824783]
[1746977196723,0.30585716,653.9,652.79,0.25824783]
[1746977204124,0.30585716,653.9,651.31,0.25824783]
[1746977204324,0.30585716,653.9,651.43,0.30701687]
[1746977204826,0.30585716,653.9,651.44,1.47763712]
[1746977205025,0.30585716,653.9,651.44,1.73588495]
[1746977205225,0.30585716,653.9,651.45,1.46951629]
[1746977205427,0.30585716,653.9,651.57,0.3069509]
[1746977205723,0.30585716,653.9,651.58,1.21126846]
[1746977205921,0.30585716,653.9,651.69,0.30689438]
[1746977206125,0.26635541,653.89,651.7,1.21126846]
[1746977206324,0.26635541,653.89,651.8,0.30684258]
[1746977206523,0.26635541,653.89,651.81,0.25824783]
[1746977206723,0.30586651,653.88,651.81,0.25824783]
[1746977206923,0.30586651,653.88,651.91,0.30679081]
[1746977207124,0.30586651,653.88,651.92,1.21126846]
[1746977207326,0.30586651,653.88,651.94,0.30677669]
[1746977207629,0.30586651,653.88,651.95,1.21126846]
[1746977207829,0.30586651,653.88,651.97,0.30676258]
[1746977208223,0.30586651,653.88,651.98,1.46951629]
[1746977208428,0.30586651,653.88,651.99,0.25824783]
[1746977208628,0.30586651,653.88,652.01,0.30674376]
[1746977208829,0.26630343,653.87,652.02,0.25824783]
[1746977209024,0.30587587,653.86,652.04,0.30672964]
[1746977209227,0.30587587,653.86,652.05,1.21126846]
[1746977209529,0.30587587,653.86,652.06,0.25824783]
[1746977209724,0.30587587,653.86,652.07,1.21126846]
[1746977209931,0.30587587,653.86,652.07,1.46951629]
[1746977210228,0.30587587,653.86,652.08,1.46951629]
[1746977210528,0.30587587,653.86,652.09,0.25824783]
[1746977210725,0.30587587,653.86,652.11,0.30669672]
[1746977210929,0.30587587,653.86,652.12,1.46951629]
[1746977211129,0.30587587,653.86,652.14,0.30668261]
[1746977211529,0.30587587,653.86,652.15,1.21126846]
[1746977211725,0.30587587,653.86,652.15,1.46951629]
[1746977211931,0.26628815,653.85,652.16,0.25824783]
[1746977212128,0.30588523,653.84,652.17,0.3066685]
[1746977212327,0.30588523,653.84,652.17,0.56491633]
[1746977212528,0.30588523,653.84,652.18,1.21126846]
[1746977212831,0.30588523,653.84,652.2,0.3066544]
[1746977213232,0.30588523,653.84,652.21,0.25824783]
[1746977213433,0.30588523,653.84,652.23,0.30664029]
[1746977213827,0.30588523,653.84,652.24,1.21126846]
[1746977214028,0.30588523,653.84,652.24,1.46951629]
[1746977214227,0.30588523,653.84,652.25,1.46951629]
[1746977214732,0.30588523,653.84,652.26,1.21126846]
[1746977214933,0.26626574,653.83,652.28,0.30661679]
[1746977215127,0.26626574,653.83,652.29,0.25824783]
[1746977215331,0.26626574,653.83,652.31,0.30660268]
[1746977215528,0.26626574,653.83,652.32,1.21126846]
[1746977215734,0.26626574,653.83,652.33,0.30659328]
[1746977215928,0.26626574,653.83,652.33,0.56484111]
[1746977216128,0.26626574,653.83,652.34,1.21126846]
[1746977216332,0.26626574,653.83,652.34,1.46951629]
[1746977216526,0.26626574,653.83,652.35,0.56483171]
[1746977216728,0.26626574,653.83,652.36,1.51784764]
[1746977217028,0.26626574,653.83,652.37,0.30657448]
[1746977217232,0.26626574,653.83,652.37,0.56482231]
[1746977217432,0.26626574,653.83,652.38,1.21126846]
[1746977217633,0.30589458,653.82,652.39,0.30656509]
[1746977217830,0.30589458,653.82,652.4,0.25824783]
[1746977218028,0.30589458,653.82,652.41,0.30655569]
[1746977218226,0.30589458,653.82,652.42,0.25824783]
[1746977218432,0.30589458,653.82,652.42,1.46951629]
[1746977218628,0.30589458,653.82,652.43,0.25824783]
[1746977218928,0.30589458,653.82,652.43,1.77606258]
[1746977219234,0.30589458,653.82,652.43,1.51781475]
[1746977219533,0.30589458,653.82,652.44,1.21126846]
[1746977219733,0.30589458,653.82,652.45,0.30653689]
[1746977219934,0.30589458,653.82,652.46,0.25824688]
[1746977220132,0.30589458,653.82,652.47,1.21126846]
[1746977220728,0.30589458,653.82,652.48,0.25824688]
[1746977220931,0.26625351,653.81,652.49,1.21126846]
[1746977221134,0.26625351,653.81,652.5,0.3065134]
[1746977221434,0.26625351,653.81,652.5,1.77602874]
[1746977221734,0.26625351,653.81,652.51,0.25824688]
[1746977221929,0.26625351,653.81,652.51,0.56475559]
[1746977222234,0.26625351,653.81,652.52,1.21126846]
[1746977222432,0.26625351,653.81,652.52,1.46951534]
[1746977222630,0.26625351,653.81,652.53,0.25824688]
[1746977223030,0.26625351,653.81,652.54,1.21126846]
[1746977223234,0.26625351,653.81,652.55,0.25824688]
[1746977223535,0.26625351,653.81,652.56,1.21126846]
[1746977223829,0.26625351,653.81,652.57,0.25824688]
[1746977224031,0.26625351,653.81,652.58,1.21126846]
[1746977224435,0.26625351,653.81,652.59,0.25824688]
[1746977224631,0.26625351,653.81,652.6,1.21126846]
[1746977225034,0.26625351,653.81,652.61,1.21126846]
[1746977225231,0.26625351,653.81,652.61,1.46951534]
[1746977225631,0.26625351,653.81,652.62,1.46951534]
[1746977225831,0.26625351,653.81,652.63,0.25824688]
[1746977226138,0.26625351,653.81,652.64,1.21126846]
[1746977226639,0.30589458,653.82,652.64,1.21126846]
[1746977226840,0.26623722,653.8,652.65,1.21126846]
[1746977227036,0.26623722,653.8,652.66,1.21126846]
[1746977227438,0.26623722,653.8,652.67,0.25824688]
[1746977227633,0.26623722,653.8,652.68,1.21126846]
[1746977228037,0.26623722,653.8,652.69,1.21126846]
[1746977228339,0.26623722,653.8,652.69,1.46951534]
[1746977228639,0.26623722,653.8,652.7,1.46951534]
[1746977228839,0.26623722,653.8,652.71,1.46951534]
[1746977229242,0.26623722,653.8,652.72,1.46951534]
[1746977229741,0.30589458,653.82,652.73,0.25824688]
[1746977229939,0.26622907,653.79,652.73,0.25824688]
[1746977230437,0.26622907,653.79,652.74,1.21126846]
[1746977231039,0.26622907,653.79,652.75,1.21126846]
[1746977231238,0.26622907,653.79,652.75,1.46951443]
[1746977231437,0.26622907,653.79,652.76,1.46951443]
[1746977231837,0.26622907,653.79,652.77,1.46951443]
[1746977232038,0.26622907,653.79,652.77,1.21126846]
[1746977232342,0.26622907,653.79,652.78,0.25824629]
[1746977232643,0.30589458,653.82,652.78,0.25824629]
[1746977232942,0.30589458,653.82,652.51,0.30650871]
[1746977232943,0.26617816,653.81,652.52,0.25824629]
[1746977233939,0.26617816,653.81,652.53,1.21112332]
[1746977234338,0.26617816,653.81,652.54,0.25824629]
[1746977234543,0.26617816,653.81,652.54,1.46936961]
[1746977235143,0.26617816,653.81,652.55,1.4695338]
[1746977235544,0.30589458,653.82,652.55,1.4695338]
[1746977235838,0.30589458,653.82,652.51,0.30650871]
[1746977235839,0.26624842,653.8,652.56,1.4695338]
[1746977236238,0.26624842,653.8,652.57,1.4695338]
[1746977236639,0.26624842,653.8,652.58,0.25824629]
[1746977237144,0.26624842,653.8,652.59,1.21128751]
[1746977237339,0.26624842,653.8,652.6,0.25824629]
[1746977237939,0.26624842,653.8,652.61,1.21128751]
[1746977238238,0.26624842,653.8,652.62,0.25824629]
[1746977238544,0.30589458,653.82,652.63,1.21128751]
[1746977238946,0.30589458,653.82,652.64,0.25824629]
[1746977239146,0.26620056,653.81,652.64,0.25824629]
[1746977239444,0.26620056,653.81,652.65,1.21128751]
[1746977239841,0.26620056,653.81,652.66,0.25824629]
[1746977240140,0.26620056,653.81,652.67,1.21128751]
[1746977240740,0.26620056,653.81,652.68,0.25824629]
[1746977241442,0.26620056,653.81,652.69,1.21128751]
[1746977241646,0.30589458,653.82,652.69,1.21128751]
[1746977241846,0.26621991,653.8,652.7,0.25824629]
[1746977242147,0.26621991,653.8,652.71,1.21128751]
[1746977242545,0.26621991,653.8,652.72,0.25824629]
[1746977242848,0.26621991,653.8,652.73,1.21128751]
[1746977243347,0.26621991,653.8,652.74,0.25824629]